{"text_format":"3","workbook":"xlsx","n_sheets":4,"sheets":["รายการของที่ต้องซื้อ","การแบ่งงบประมาณ","รายการสิ่งที่ต้องทำ","รายการการแชร์"],"not_rendered":{"charts":2,"images":2,"defined_names":12},"read":"whole","date_system":"1900"}

{"sheet":"รายการของที่ต้องซื้อ","index":0,"n_rows":25,"n_cols":8,"rows_kept":25,"merged":[[0,1,0,3],[2,1,2,7],[3,1,3,2],[4,4,6,7]]}
[null,"เตรียมพร้อมรับเปิดเทอม",null,null,"ตัววางแผน"]
[]
[null,"ติดตามความคืบหน้าของการซื้อของกับจำนวนเงินของประเภทงบประมาณที่ใส่ไว้ในการแบ่งงบประมาณ"]
[null,"สรุปงบประมาณ",null,null,{"$f":"\"ความคืบหน้าในการซื้อ (\"&COUNTIFS(รายการตรวจสอบ[ซื้อแล้ว], \">0\")&\" ของ \"&COUNTIFS(รายการตรวจสอบ[ของที่ต้องซื้อ], \">0\")&\")\"","v":"ความคืบหน้าในการซื้อ (1 ของ 6)"}]
[null,"งบประมาณ",{"v":1500,"d":"฿1,500.00"},null,{"$f":"IFERROR(COUNTIFS(รายการตรวจสอบ[ของที่ต้องซื้อ],\">0\",รายการตรวจสอบ[ซื้อแล้ว],\">0\")/รวมรายการที่ต้องซื้อ,0)","v":{"v":0.16666666666666666,"d":"17%"}}]
[null,"รายการของที่ต้องซื้อทั้งหมด",{"$f":"IFERROR(SUM(รายการตรวจสอบทั้งหมด), \"\")","v":{"v":365,"d":"฿365.00"}}]
[null,"เงินสดคงเหลือ",{"$f":"IFERROR(C5-C6, \"\")","v":{"v":1135,"d":"฿1,135.00"}}]
[null,"รายการของที่ต้องซื้อ"]
[null,"รายการ","ประเภท","ปริมาณ","ของที่ต้องซื้อ","ค่าใช้จ่าย","ซื้อแล้ว","ค่าใช้จ่ายทั้งหมด"]
[null,"คณิตศาสตร์","หนังสือเรียน",1,1,{"v":55,"d":"฿55.00"},1,{"$f":"IFERROR(รายการตรวจสอบ[ปริมาณ]*รายการตรวจสอบ[ค่าใช้จ่าย], \"\")","v":{"v":55,"d":"฿55.00"}}]
[null,"ภาษาอังกฤษ","หนังสือเรียน",1,1,null,null,{"$f":"IFERROR(รายการตรวจสอบ[ปริมาณ]*รายการตรวจสอบ[ค่าใช้จ่าย], \"\")","v":0}]
[null,"เป้สะพายหลัง","อุปกรณ์การเรียน",1,null,{"v":30,"d":"฿30.00"},null,{"$f":"IFERROR(รายการตรวจสอบ[ปริมาณ]*รายการตรวจสอบ[ค่าใช้จ่าย], \"\")","v":{"v":30,"d":"฿30.00"}}]
[null,"ตัวคำนวณ","อุปกรณ์การเรียน",1,{"$nulls":3},{"$f":"IFERROR(รายการตรวจสอบ[ปริมาณ]*รายการตรวจสอบ[ค่าใช้จ่าย], \"\")","v":0}]
[null,"ปากกาเน้นข้อความ","อุปกรณ์การเรียน",3,{"$nulls":3},{"$f":"IFERROR(รายการตรวจสอบ[ปริมาณ]*รายการตรวจสอบ[ค่าใช้จ่าย], \"\")","v":0}]
[null,"เครื่องแบบ","เสื้อผ้า",2,1,{"v":100,"d":"฿100.00"},null,{"$f":"IFERROR(รายการตรวจสอบ[ปริมาณ]*รายการตรวจสอบ[ค่าใช้จ่าย], \"\")","v":{"v":200,"d":"฿200.00"}}]
[null,"เสื้อเชิ้ต ติดกระดุม","เสื้อผ้า",4,{"$nulls":3},{"$f":"IFERROR(รายการตรวจสอบ[ปริมาณ]*รายการตรวจสอบ[ค่าใช้จ่าย], \"\")","v":0}]
[null,"เสื้อเชิ้ต เสื้อยืด","เสื้อผ้า",5,{"$nulls":3},{"$f":"IFERROR(รายการตรวจสอบ[ปริมาณ]*รายการตรวจสอบ[ค่าใช้จ่าย], \"\")","v":0}]
[null,"กางเกงขาสั้น","เสื้อผ้า",2,{"$nulls":3},{"$f":"IFERROR(รายการตรวจสอบ[ปริมาณ]*รายการตรวจสอบ[ค่าใช้จ่าย], \"\")","v":0}]
[null,"รองเท้าผ้าใบ","เสื้อผ้า",2,1,null,null,{"$f":"IFERROR(รายการตรวจสอบ[ปริมาณ]*รายการตรวจสอบ[ค่าใช้จ่าย], \"\")","v":0}]
[null,"ถุงเท้า","เสื้อผ้า",10,{"$nulls":3},{"$f":"IFERROR(รายการตรวจสอบ[ปริมาณ]*รายการตรวจสอบ[ค่าใช้จ่าย], \"\")","v":0}]
[null,"แจ็กเก็ตสำหรับฤดูใบไม้ผลิ","เสื้อผ้า",1,1,{"v":80,"d":"฿80.00"},null,{"$f":"IFERROR(รายการตรวจสอบ[ปริมาณ]*รายการตรวจสอบ[ค่าใช้จ่าย], \"\")","v":{"v":80,"d":"฿80.00"}}]
[null,"สเวตเตอร์","เสื้อผ้า",1,{"$nulls":3},{"$f":"IFERROR(รายการตรวจสอบ[ปริมาณ]*รายการตรวจสอบ[ค่าใช้จ่าย], \"\")","v":0}]
[null,"เสื้อวอร์ม","เสื้อผ้า",1,{"$nulls":3},{"$f":"IFERROR(รายการตรวจสอบ[ปริมาณ]*รายการตรวจสอบ[ค่าใช้จ่าย], \"\")","v":0}]
[null,"ชุดชั้นใน","เสื้อผ้า",10,{"$nulls":3},{"$f":"IFERROR(รายการตรวจสอบ[ปริมาณ]*รายการตรวจสอบ[ค่าใช้จ่าย], \"\")","v":0}]
[null,"แจ็กเก็ตสำหรับฤดูหนาว","เสื้อผ้า",1,1,null,null,{"$f":"IFERROR(รายการตรวจสอบ[ปริมาณ]*รายการตรวจสอบ[ค่าใช้จ่าย], \"\")","v":0}]

{"sheet":"การแบ่งงบประมาณ","index":1,"n_rows":6,"n_cols":3,"rows_kept":6}
[null,"การแบ่งงบประมาณ"]
[null,"เพิ่มประเภทและจำนวนงบประมาณเพื่อติดตามกับรายการของที่ต้องซื้อของคุณ"]
[null,"ประเภท","ค่าใช้จ่ายทั้งหมด"]
[null,"เสื้อผ้า",{"$f":"IFERROR(SUMIFS(รายการตรวจสอบ[ค่าใช้จ่ายทั้งหมด],รายการตรวจสอบ[ประเภท],ประเภท[ประเภท]), \"\")","v":{"v":280,"d":"฿280.00"}}]
[null,"อุปกรณ์การเรียน",{"$f":"IFERROR(SUMIFS(รายการตรวจสอบ[ค่าใช้จ่ายทั้งหมด],รายการตรวจสอบ[ประเภท],ประเภท[ประเภท]), \"\")","v":{"v":30,"d":"฿30.00"}}]
[null,"หนังสือเรียน",{"$f":"IFERROR(SUMIFS(รายการตรวจสอบ[ค่าใช้จ่ายทั้งหมด],รายการตรวจสอบ[ประเภท],ประเภท[ประเภท]), \"\")","v":{"v":55,"d":"฿55.00"}}]

{"sheet":"รายการสิ่งที่ต้องทำ","index":2,"n_rows":22,"n_cols":3,"rows_kept":22}
[null,"รายการสิ่งที่ต้องทำ"]
[null,"ติดตามกิจกรรมทั้งหมดที่คุณต้องทำให้เสร็จก่อนเปิดเทอม"]
[null,"เสร็จสิ้น","งาน"]
[null,"X","กรอกแบบฟอร์มลงทะเบียนทั้งหมดให้เสร็จสมบูรณ์"]
[null,null,"จัดกำหนดการตรวจร่างกายและสายตาสำหรับโรงเรียนถ้าจำเป็น"]
[null,null,"ตรวจสอบการสร้างภูมิคุ้มกันที่จำเป็นทั้งหมด"]
[null,null,"รับบันทึกย่อทีมีคำแนะนำปริมาณการใช้ยาสำหรับยาที่จำเป็นทั้งหมดจากแพทย์"]
[null,null,"ดูข้อกำหนดในการแต่งตัวของโรงเรียน"]
[null,null,"รับรายการอุปกรณ์การเรียน"]
[null,null,"พบครู"]
[null,null,"กำหนดวิธีการติดต่อสื่อสารที่ครูต้องการ (โทรศัพท์ อีเมล หรือการเขียนบันทึกย่อ)"]
[null,null,"เที่ยวชมโรงเรียนกับลูก"]
[null,null,"ช่วยให้ลูกจำเบอร์โทรศัพท์บ้าน เบอร์โทรศัพท์ที่ทำงาน และที่อยู่บ้าน"]
[null,null,"จัดเตรียมการเดินทาง กำหนดจุดนัดพบที่ปลอดภัย และฝึกฝนกิจวัตรประจำวัน"]
[null,null,"ถ้าเดินไปโรงเรียน ให้ฝึกเดินตามเส้นทางไปกลับโรงเรียนกับลูกสักสองสามครั้ง"]
[null,null,"ถ้าติดรถไปกับคนอื่น ให้แนะนำลูกให้คนขับรถทุกคนรู้จัก"]
[null,null,"ถ้านั่งรถเมล์ ให้กำหนดเวลาและป้ายรถเมล์"]
[null,null,"จัดเตรียมการดูแลลูกหลังเลิกเรียน"]
[null,null,"วางแผนเมนูอาหารเช้า อาหารว่างที่โรงเรียน อาหารกลางวันที่บรรจุไป และอาหารว่างหลังเลิกเรียน"]
[null,null,"กำหนดสถานที่ทำการบ้านและตารางเวลา"]
[null,null,"สร้างกิจวัตรประจำเวลานอนอย่างน้อย 2 สัปดาห์ก่อนเปิดเทอม"]
[null,null,"เตรียมปฏิทินของเหตุการณ์และกิจกรรมทั้งหมดของโรงเรียน"]

{"sheet":"รายการการแชร์","index":3,"n_rows":4,"n_cols":5,"rows_kept":4}
[null,"รายการการแชร์",null,null,"แชร์รายการนี้กับคนอื่นเพื่อให้พวกเขาสามารถมีส่วนร่วมได้ เลือกแชร์ในมุมขวาบน หรือกด ALT แล้วกด ชร บันทึกไฟล์ลงใน OneDrive และส่งลิงก์ไปให้เพื่อนของคุณ"]
[null,"ชื่อ","อีเมล","ต้องการแชร์หรือไม่"]
[null,"บุคคลที่ 1","someone@email.com","ใช่"]
[null,"บุคคลที่ 2","someone@email.com","ไม่ใช่"]